bitfinex/quotes_ETHUSD_20220123
["timestamp","ask_amount","ask_price","bid_price","bid_amount"]
[1642906184020,0.0020765,2415.3,2415.2,3.98612387]
[1642906184272,0.0020765,2415.3,2415.2,1.81257471]
[1642906184467,0.0020765,2415.3,2415.2,4.46257471]
[1642906185069,0.0020765,2415.3,2415.2,4.16257471]
[1642906185268,0.0020765,2415.3,2415.2,1.51257471]
[1642906186774,0.0020765,2415.3,2414.9,1.2054]
[1642906187172,0.00150808,2415.2,2414.7,3.96866315]
[1642906187374,0.00150808,2415.2,2414.7,0.00076315]
[1642906187572,0.00093965,2415.1,2414.7,0.00076315]
[1642906188032,0.0020765,2415.3,2415.0,1.44358436]
[1642906188230,0.0020765,2415.3,2415.0,1.39358436]
[1642906188431,0.00150808,2415.2,2414.7,0.00076315]
[1642906188637,2.5,2415.1,2414.7,0.00076315]
[1642906188831,0.165,2415.0,2414.7,0.00076315]
[1642906189031,2.50093965,2415.1,2414.7,0.00076315]
[1642906189234,0.00093965,2415.1,2414.7,0.00076315]
[1642906189437,0.00093965,2415.1,2414.8,1.43190688]
[1642906189632,0.00093965,2415.1,2414.7,0.00076315]
[1642906190231,0.1648,2415.0,2414.7,0.00076315]
[1642906190833,0.1648,2415.0,2414.7,1.21881316]
[1642906191534,0.165881,2415.0,2414.7,1.21881316]
[1642906191978,0.00093965,2415.1,2414.7,1.21881316]
[1642906192475,0.00093965,2415.1,2414.7,26.86081316]
[1642906192673,0.00093965,2415.1,2414.7,2.83081316]
[1642906192877,0.00093965,2415.1,2414.8,0.1656]
[1642906194278,1.45718323,2415.0,2414.8,0.1656]
[1642906195522,1.78776723,2415.0,2414.8,0.1656]
[1642906195725,1.62188323,2415.0,2414.8,0.1656]
[1642906195923,0.00093965,2415.1,2414.8,0.1656]
[1642906196725,0.1648,2415.0,2414.8,0.1656]
[1642906197130,1.18640432,2414.9,2414.8,0.1656]
[1642906199268,1.35230532,2414.9,2414.8,0.1656]
[1642906199673,1.18640432,2414.9,2414.8,0.1656]
[1642906199869,2.15839432,2414.9,2414.7,0.00076315]
[1642906200072,0.1656,2414.8,2414.7,0.00076315]
[1642906200470,0.1656,2414.8,2414.7,0.00209719]
[1642906200670,1.1656,2414.8,2414.7,0.00209719]
[1642906200874,1.37199,2414.8,2414.7,0.00209719]
[1642906201073,1.37199,2414.8,2414.0,0.0207124]
[1642906201074,2.85,2414.7,2414.0,0.0207124]
[1642906201273,2.5,2414.3,2414.0,0.0207124]
[1642906201474,2.992,2414.3,2414.1,0.00341054]
[1642906201680,2.992,2414.3,2413.0,0.02]
[1642906201681,3.83724,2414.1,2413.0,0.02]
[1642906201877,0.01218918,2413.7,2413.0,0.02]
[1642906202177,0.492,2413.6,2413.5,0.00341054]
[1642906202373,2.7,2413.5,2412.9,0.00011054]
[1642906202574,1.20639,2413.4,2412.9,0.00011054]
[1642906202924,0.492,2413.4,2413.1,0.0022737]
[1642906203524,2.5,2413.5,2413.1,0.0022737]
[1642906203725,2.5,2413.5,2412.8,2.61189164]
[1642906203929,2.5,2413.3,2412.8,1.27897489]
[1642906204125,0.00170527,2413.4,2412.9,0.00113684]
[1642906204427,1.0374,2414.1,2412.9,0.00113684]
[1642906204428,0.00113685,2413.3,2412.9,0.00113684]
[1642906204832,0.00511581,2414.0,2412.9,0.00113684]
[1642906205025,0.00511581,2414.0,2412.9,3.52671918]
[1642906205225,2.5,2414.2,2413.9,0.98280465]
[1642906205427,2.5,2414.0,2413.9,0.98280465]
[1642906205628,2.50511581,2414.0,2413.9,0.98280465]
[1642906205828,0.00511581,2414.0,2413.9,0.98280465]
[1642906206970,0.17104181,2414.0,2413.9,0.98280465]
[1642906207374,0.00511581,2414.0,2413.9,0.98280465]
[1642906207969,0.00511581,2414.0,2413.9,2.39919457]
[1642906208169,0.00511581,2414.0,2413.9,4.49919457]
[1642906208770,0.00511581,2414.0,2413.9,2.39919457]
[1642906208974,0.00511581,2414.0,2413.9,0.98280465]
[1642906209975,0.00511581,2414.0,2413.9,0.88280465]
[1642906210623,0.00511581,2414.0,2413.9,2.14929436]
[1642906211227,2.665898,2414.3,2414.0,2.85]
[1642906211625,0.00113685,2414.2,2414.0,3.15]
[1642906212026,0.00625266,2415.1,2414.0,3.15]
[1642906212226,0.00625266,2415.1,2414.0,27.18]
[1642906212533,0.1656,2415.7,2414.9,2.40096602]
[1642906212534,0.00568424,2415.0,2414.9,2.40096602]
[1642906212925,0.00568424,2415.0,2414.9,1.19813473]
[1642906213127,0.00488424,2415.0,2414.2,1.2021]
[1642906213531,0.00431581,2414.9,2414.2,1.2021]
[1642906213928,0.00374739,2414.8,2414.2,1.2021]
[1642906214195,0.00374739,2414.8,2414.4,1.48300668]
[1642906214382,0.00317897,2414.7,2414.4,1.48300668]
[1642906214583,0.00317897,2414.7,2414.5,1.43821277]
[1642906214782,0.1656,2415.3,2414.5,1.43821277]
[1642906214783,0.00261054,2414.6,2414.5,1.43821277]
[1642906215189,0.00261054,2414.6,2414.5,2.85]
[1642906215190,1.054e-05,2414.6,2414.5,2.85]
[1642906215385,1.054e-05,2414.6,2414.5,3.15]
[1642906215588,1.054e-05,2414.6,2414.5,29.1376]
[1642906216387,1.054e-05,2414.6,2414.5,3.8076]
[1642906216588,1.054e-05,2414.6,2414.5,3.15]
[1642906216787,1.054e-05,2414.6,2414.3,0.1656]
[1642906217190,1.054e-05,2414.6,2414.4,0.0011263]
[1642906217790,1.054e-05,2414.6,2414.3,0.00169473]
[1642906218617,0.16586954,2414.6,2414.3,0.00169473]
[1642906219220,0.16586954,2414.6,2414.3,1.00169473]
[1642906219417,0.16586954,2414.6,2414.4,1.33596934]
[1642906219617,0.16586954,2414.6,2414.5,4.31459374]
[1642906219817,0.16586954,2414.6,2414.5,4.01459374]
[1642906222473,0.6357,2415.2,2414.7,24.03]
[1642906222676,0.4704,2415.2,2414.7,24.03]
[1642906222871,0.00284212,2415.1,2414.9,24.85581019]
[1642906223075,0.00284212,2415.1,2414.9,25.45581019]
[1642906223272,0.0022737,2415.0,2414.9,25.45581019]
[1642906223473,0.0022737,2415.0,2414.9,2.67664323]
[1642906223672,0.0022737,2415.0,2414.9,3.67664323]
[1642906224073,0.0022737,2415.0,2414.9,2.37664323]
[1642906224273,0.0022737,2415.0,2414.9,2.07664323]
[1642906224676,0.0022737,2415.0,2414.9,2.37664323]
[1642906225276,0.0022737,2415.0,2414.9,2.07664323]
[1642906226123,0.0022737,2415.0,2414.9,1.25083304]
[1642906226320,0.0022737,2415.0,2414.3,3.1833]
[1642906226519,0.0022737,2415.0,2414.2,1.2021]
[1642906226719,0.636,2415.2,2414.2,1.2021]
[1642906226720,0.00170527,2414.9,2414.4,0.00113684]
[1642906226920,0.00170527,2414.9,2414.3,3.52529678]
[1642906227220,0.00113685,2414.8,2414.5,1.55525358]
[1642906227620,0.00113685,2414.8,2414.6,1.21182701]
[1642906228020,0.00113685,2414.8,2414.6,1.81182701]
[1642906228225,0.4704,2415.2,2414.8,0.0022737]
[1642906228723,0.00170527,2415.1,2414.8,0.0022737]
[1642906229170,0.00113685,2415.0,2414.8,0.0022737]
[1642906229671,0.00113685,2415.0,2414.8,1.51601804]
[1642906231869,0.00113685,2415.0,2414.8,0.0022737]
[1642906240925,0.00113685,2415.0,2414.8,24.0322737]
[1642906241129,0.00113685,2415.0,2414.8,0.0022737]
[1642906241324,0.00113685,2415.0,2414.8,3.52527454]
[1642906241532,0.00113685,2415.0,2414.9,1.0]
[1642906241726,0.1653,2415.8,2415.0,2.85]
[1642906241927,0.16581,2415.8,2415.1,0.6076]
[1642906242126,0.00174685,2415.8,2415.2,2.85]
[1642906242330,0.00284211,2415.7,2415.3,0.1655]
[1642906242528,0.00284211,2415.7,2415.4,1.79477526]
[1642906242730,7.369e-05,2415.6,2415.5,24.1955]
[1642906243027,7.369e-05,2415.6,2415.5,2.87953743]
[1642906243229,7.369e-05,2415.6,2415.4,1.30277526]
[1642906243230,7.369e-05,2415.6,2415.1,0.492]
[1642906243430,7.369e-05,2415.6,2414.9,4.903]
[1642906243431,0.1653,2415.5,2414.9,4.903]
[1642906243634,0.1653,2415.5,2415.2,0.0022]
[1642906243829,0.1653,2415.5,2415.0,0.00333685]
[1642906244027,7.369e-05,2415.6,2415.0,0.00333685]
[1642906244285,7.369e-05,2415.6,2415.0,1.28468497]
[1642906244686,7.369e-05,2415.6,2415.1,0.00276843]
[1642906245190,7.369e-05,2415.6,2415.2,0.1656]
[1642906245588,7.369e-05,2415.6,2415.5,3.1815951]
[1642906245986,7.369e-05,2415.6,2415.5,2.05]
[1642906246388,7.369e-05,2415.6,2415.3,0.00163158]
[1642906246788,7.369e-05,2415.6,2415.1,0.00276843]
[1642906246988,7.369e-05,2415.6,2415.0,0.16893685]
[1642906247190,7.369e-05,2415.6,2415.4,1.19303068]
[1642906247788,1.95182054,2416.0,2415.4,1.19303068]
[1642906248031,1.90182054,2416.0,2415.4,1.19303068]
[1642906248225,1.38646271,2415.8,2415.4,1.19303068]
[1642906249026,1.38646271,2415.8,2415.1,0.00276843]
[1642906249226,0.1656,2415.7,2415.1,0.00276843]
[1642906249422,0.1656,2415.7,2415.1,1.31914213]
[1642906249821,0.00170527,2415.9,2415.2,0.00227369]
[1642906249822,0.1656,2415.8,2415.2,0.00227369]
[1642906250025,0.33334627,2415.9,2415.2,0.00227369]
[1642906250026,0.00170527,2415.9,2415.2,0.00227369]
[1642906250226,0.16663685,2415.8,2415.2,0.00227369]
[1642906250625,1.29283996,2415.8,2415.2,0.00227369]
[1642906252086,0.16663685,2415.8,2415.2,0.00227369]
[1642906253388,1.30306432,2415.7,2415.2,0.00227369]
[1642906253590,0.1656,2415.6,2415.2,0.00227369]
[1642906253789,0.1656,2415.6,2414.9,0.00397897]
[1642906254591,1.24769523,2415.1,2414.9,0.00397897]
[1642906254790,0.1656,2415.6,2414.9,0.00397897]
[1642906255192,0.4656,2415.7,2414.9,0.00397897]
[1642906255619,0.1656,2415.7,2414.9,0.00397897]
[1642906255820,1.38488596,2415.3,2414.9,0.00397897]
[1642906257620,1.1656,2415.7,2414.9,0.00397897]
[1642906257821,0.1656,2415.7,2414.9,0.00397897]
[1642906258032,1.1656,2415.7,2414.9,0.00397897]
[1642906258221,0.1656,2415.7,2414.9,0.00397897]
[1642906258426,1.1656,2415.7,2414.9,0.00397897]
[1642906259023,1.25245181,2415.7,2414.9,0.00397897]
[1642906259290,0.20639,2415.6,2414.9,0.00397897]
[1642906259484,1.7553398,2415.0,2414.9,0.00397897]
[1642906259682,2.1273298,2415.0,2414.9,0.00397897]
[1642906259881,2.4273298,2415.0,2414.9,0.00397897]
[1642906261083,2.55,2414.9,2414.8,0.0022737]
[1642906261283,3.2076,2414.9,2414.8,0.0022737]
[1642906261486,4.2076,2414.9,2414.8,0.0022737]
[1642906261686,4.41399,2414.9,2413.7,3.52435459]
[1642906261888,1.1656,2414.8,2413.7,3.52435459]
[1642906262083,0.4656,2414.8,2413.8,0.00625265]
[1642906262285,1.4656,2414.8,2413.8,0.00625265]
[1642906262484,1.56216328,2414.6,2414.0,1.51745099]
[1642906262950,1.56216328,2414.6,2414.1,0.00454738]
[1642906264342,2.36855328,2414.6,2414.1,0.00454738]
[1642906264554,0.1656,2414.5,2414.1,0.00454738]
[1642906264740,0.1656,2414.5,2413.3,3.52508098]
[1642906264741,0.69839,2414.4,2413.3,0.00909477]
[1642906264942,0.69839,2414.4,2413.4,0.00852635]
[1642906264943,3.33203222,2414.3,2413.4,0.00852635]
[1642906265241,1.492,2414.2,2413.2,0.00966319]
[1642906265441,1.48867586,2413.6,2413.2,0.00966319]
[1642906265839,0.492,2414.0,2413.2,0.00966319]
[1642906266041,0.792,2414.0,2413.2,0.00966319]
[1642906266239,1.29839,2414.0,2413.2,0.00966319]
[1642906266439,1.29839,2414.0,2413.1,0.01023162]
[1642906266677,0.1656,2413.9,2413.1,0.01023162]
[1642906267982,1.39872499,2413.9,2413.0,2.73277998]
[1642906268178,0.00397897,2413.8,2413.4,0.73911082]
[1642906268380,0.00397897,2413.8,2412.9,0.02]
[1642906268579,0.00341054,2413.7,2412.9,0.02]
[1642906268982,0.00284212,2413.6,2412.9,0.02]
[1642906269183,0.20923212,2413.6,2412.9,0.02]
[1642906269381,1.09987415,2413.2,2412.9,0.02]
[1642906270083,1.09987415,2413.2,2412.6,0.2200775]
[1642906270284,1.09987415,2413.2,2412.6,0.1700775]
[1642906270532,0.4942737,2413.5,2412.8,0.00170527]
[1642906270929,0.00170527,2413.4,2412.8,0.00170527]
[1642906271334,3.85759997,2414.4,2413.5,0.00397896]
[1642906271530,3.85759997,2414.4,2414.2,2.3655307]
[1642906271728,1.30493695,2415.0,2414.2,1.45771776]
[1642906271928,0.13250528,2413.8,2413.5,0.00397896]
[1642906272731,0.13250528,2413.8,2413.7,1.34561808]
[1642906272930,0.13250528,2413.8,2413.6,1.47872529]
[1642906273130,0.1353474,2413.8,2413.6,1.47872529]
[1642906273332,0.00227369,2413.7,2413.6,1.47872529]
[1642906274175,0.00227369,2413.7,2413.6,2.93556656]
[1642906274580,0.1656,2415.1,2414.5,1.16258701]
[1642906274782,0.63203032,2415.3,2414.5,1.16258701]
[1642906274982,0.00568424,2414.7,2414.5,1.16258701]
[1642906275379,0.00511581,2414.6,2414.5,1.16258701]
[1642906275578,0.00511581,2414.6,2414.5,2.3747624]
[1642906276180,0.17098881,2414.6,2414.5,2.3747624]
[1642906276383,0.17098881,2414.6,2414.5,1.16258701]
[1642906276681,0.00511581,2414.6,2414.5,1.16258701]
[1642906279328,0.00511581,2414.6,2414.5,2.76258701]
[1642906279529,0.00511581,2414.6,2414.5,1.16258701]
[1642906281686,0.00511581,2414.6,2414.5,1.46258701]
[1642906281687,1.581e-05,2414.6,2414.5,1.46258701]
[1642906281885,1.581e-05,2414.6,2414.5,0.6]
[1642906282084,1.581e-05,2414.6,2414.5,0.3]
[1642906282285,1.581e-05,2414.6,2413.9,3.2801]
[1642906282489,1.581e-05,2414.6,2413.5,0.00397896]
[1642906282490,1.581e-05,2414.6,2413.6,3.8547]
[1642906282686,1.581e-05,2414.6,2414.0,0.00339473]
[1642906282885,1.581e-05,2414.6,2413.8,5.22865636]
[1642906282886,1.581e-05,2414.6,2413.8,10.16838793]
[1642906283084,1.581e-05,2414.6,2413.9,0.00396315]
[1642906283487,1.581e-05,2414.6,2413.9,24.03396315]
[1642906283687,1.581e-05,2414.6,2413.9,25.03396315]
[1642906283888,0.16589181,2414.6,2414.0,0.00339473]
[1642906284087,0.16589181,2414.6,2414.1,1.17384739]
[1642906284088,1.581e-05,2414.6,2414.1,1.17384739]
[1642906284490,1.581e-05,2414.6,2414.2,2.77309095]
[1642906284701,1.581e-05,2414.6,2414.3,1.0]
[1642906284890,1.581e-05,2414.6,2414.4,3.16103834]
[1642906285093,1.581e-05,2414.6,2414.5,30.30904377]
[1642906285442,1.581e-05,2414.6,2414.5,30.60904377]
[1642906285649,7.48,2415.5,2414.5,30.60904377]
[1642906285650,9.38182054,2416.0,2414.6,2.85]
[1642906285939,0.00454739,2415.4,2414.8,24.03]
[1642906286140,0.00454739,2415.4,2414.9,1.6576]
[1642906286338,0.00397897,2415.3,2415.0,24.03]
[1642906286638,1.90182054,2416.0,2415.1,5.50966301]
[1642906286639,1.055e-05,2415.2,2415.1,5.50966301]
[1642906286840,1.055e-05,2415.2,2415.1,29.05945128]
[1642906287042,1.055e-05,2415.2,2415.1,26.2379]
[1642906287442,1.055e-05,2415.2,2415.1,28.0379]
[1642906288041,0.33161,2415.9,2415.1,28.0379]
[1642906288042,0.165805,2415.9,2415.2,3.15]
[1642906288245,1.90182054,2416.0,2415.3,1.99397025]
[1642906288445,1.90182054,2416.0,2415.5,1.45148764]
[1642906288643,1.90182054,2416.0,2415.7,0.7855409]
[1642906288843,1.90182054,2416.0,2415.9,1.29621085]
[1642906289043,1.90182054,2416.0,2415.6,0.00162631]
[1642906289486,1.90182054,2416.0,2415.3,0.00333158]
[1642906289689,1.90182054,2416.0,2415.4,0.492]
[1642906289886,1.90182054,2416.0,2415.5,2.28161392]
[1642906290093,1.90182054,2416.0,2415.5,2.88380865]
[1642906290291,1.90182054,2416.0,2415.6,0.00162631]
[1642906290487,1.90182054,2416.0,2415.7,1.45332701]
[1642906290686,1.90182054,2416.0,2415.7,2.70792809]
[1642906291492,2.06761754,2416.0,2415.7,2.70792809]
[1642906291787,2.06761754,2416.0,2415.8,2.07680693]
[1642906292191,2.06761754,2416.0,2415.8,2.18550362]
[1642906292391,1.90182054,2416.0,2415.8,2.18550362]
[1642906292793,1.90182054,2416.0,2415.8,2.80621643]
[1642906293028,1.90182054,2416.0,2415.9,2.06806718]
[1642906293225,1.90182054,2416.0,2415.7,3.00792809]
[1642906293627,1.90182054,2416.0,2415.7,3.30792809]
[1642906295526,1.90182054,2416.0,2415.8,2.08322743]
[1642906295727,0.165779,2416.1,2416.0,1.85513957]
[1642906296026,0.16699481,2416.1,2416.0,4.75228237]
[1642906296526,0.16699481,2416.1,2416.0,4.45228237]
[1642906296778,0.16699481,2416.1,2416.0,2.15513957]
[1642906297580,0.16699481,2416.1,2416.0,1.85513957]
[1642906298180,0.16699481,2416.1,2416.0,3.35513957]
[1642906300428,0.1655,2416.7,2416.1,1.85]
[1642906300634,0.63426193,2416.9,2416.2,2.14993435]
[1642906300635,0.1655,2416.8,2416.2,2.14993435]
[1642906300829,0.00284211,2416.6,2416.5,1.5]
[1642906301234,0.00284211,2416.6,2416.5,2.96444516]
[1642906302031,0.00284211,2416.6,2416.5,1.5]
[1642906302832,0.16834211,2416.6,2416.5,1.5]
[1642906303030,0.16834211,2416.6,2416.0,1.85513957]
[1642906303031,0.33414311,2416.6,2416.2,2.0]
[1642906303234,0.1655,2416.5,2416.2,2.0]
[1642906303432,1.52607654,2416.3,2416.2,2.0]
[1642906303631,0.00170527,2416.4,2416.2,2.0]
[1642906303832,0.01202442,2416.7,2416.2,2.0]
[1642906303833,0.00113684,2416.3,2416.2,2.0]
[1642906304677,0.00113684,2416.3,2416.2,1.95]
[1642906308932,2.50113684,2416.3,2416.2,1.95]
[1642906309129,3.50113684,2416.3,2416.2,1.95]
[1642906309330,3.50113684,2416.3,2416.0,1.85513957]
[1642906309331,2.85,2416.2,2416.0,1.85513957]
[1642906309534,2.35639,2416.1,2416.0,1.85513957]
[1642906309729,3.91183893,2416.1,2416.0,1.85513957]
[1642906309927,1.55544893,2416.1,2416.0,1.85513957]
[1642906310331,1.55544893,2416.1,2416.0,1.80513957]
[1642906310730,1.62127793,2416.1,2416.0,1.80513957]
[1642906314575,1.82766793,2416.1,2416.0,1.80513957]
[1642906314774,1.62127793,2416.1,2416.0,1.80513957]
[1642906316134,1.45544893,2416.1,2416.0,1.80513957]
[1642906316534,1.94744893,2416.1,2416.0,1.80513957]
[1642906316733,2.15383893,2416.1,2416.0,1.80513957]
[1642906316936,2.75383893,2416.1,2416.0,1.80513957]
[1642906317134,3.75383893,2416.1,2416.0,1.80513957]
[1642906317536,3.75383893,2416.1,2415.8,1.5]
[1642906317735,2.95639,2415.9,2415.8,0.89180624]
[1642906317936,3.25639,2415.9,2415.8,0.89180624]
[1642906318135,5.04839,2415.9,2415.8,0.89180624]
[1642906318535,5.04839,2415.9,2414.7,1.09460173]
[1642906318536,5.214254,2415.9,2414.7,1.09460173]
[1642906318834,1.0,2415.8,2414.7,2.29580221]
[1642906319038,0.492,2415.7,2414.7,2.29580221]
[1642906319480,0.792,2415.7,2414.7,2.29580221]
[1642906319882,1.487121,2415.5,2414.7,2.29580221]
[1642906320280,1.487121,2415.5,2414.7,0.00795793]
[1642906320682,1.787121,2415.5,2414.7,0.00795793]
[1642906321079,1.787121,2415.5,2414.6,0.00852636]
[1642906321483,1.787121,2415.5,2414.7,1.45620272]
[1642906321682,1.487121,2415.5,2415.0,0.68540324]
[1642906321880,0.492,2415.7,2415.0,0.68540324]
[1642906322082,0.792,2415.7,2415.1,0.00568424]
[1642906322483,0.657864,2415.7,2415.1,0.00568424]
[1642906322938,0.165864,2415.7,2415.4,2.5093217]
[1642906323337,0.165864,2415.7,2415.5,0.00341054]
[1642906324348,0.00113684,2416.3,2415.8,2.15]
[1642906324740,0.00113684,2416.3,2415.9,0.00113685]
[1642906324939,0.00113684,2416.3,2416.2,0.84542193]
[1642906325540,0.00113684,2416.3,2416.1,1.32799332]
[1642906326140,0.00113684,2416.3,2415.9,0.00113685]
[1642906326541,0.00113684,2416.3,2415.8,0.00170527]
[1642906326782,0.165794,2416.4,2416.0,2.2]
[1642906327180,0.165794,2416.4,2416.1,0.00113684]
[1642906328081,0.165794,2416.4,2416.2,1.09684322]
[1642906328483,0.165794,2416.4,2416.3,3.0155]
[1642906328680,0.165794,2416.4,2416.3,4.3155]
[1642906329079,0.165794,2416.4,2416.3,4.92326941]
[1642906329282,0.165794,2416.4,2416.3,4.75776941]
[1642906329680,0.165794,2416.4,2416.3,3.45776941]
[1642906330733,7.48,2418.1,2416.4,2.8657]
[1642906330933,0.61689318,2417.9,2416.9,0.01295863]
[1642906331131,7.48,2418.1,2416.8,0.492]
[1642906331337,0.0128202,2418.3,2416.4,5.0562]
[1642906331338,7.48,2417.6,2416.4,5.0562]
[1642906331727,1.42495464,2416.9,2416.4,5.0562]
[1642906331927,7.48,2417.6,2416.6,1.19660227]
[1642906332133,0.00284212,2416.8,2416.6,1.19660227]
[1642906332527,0.0022737,2416.7,2416.6,1.19660227]
[1642906333630,0.0022737,2416.7,2416.6,3.43697442]
[1642906333828,0.0022737,2416.7,2416.6,3.59660227]
[1642906334028,0.0022737,2416.7,2416.6,6.48700507]
[1642906334280,0.0022737,2416.7,2416.6,1.19660227]
[1642906334878,0.0022737,2416.7,2416.6,3.62871229]
[1642906335080,0.0022737,2416.7,2416.6,5.22871229]
[1642906337080,7.37e-05,2416.7,2416.6,5.22871229]
[1642906337288,7.37e-05,2416.7,2416.6,33.4368954]
[1642906338332,7.37e-05,2416.7,2416.6,29.91621229]
[1642906338938,7.37e-05,2416.7,2416.6,33.43685565]
[1642906339335,7.37e-05,2416.7,2416.6,29.91621229]
[1642906339938,7.37e-05,2416.7,2416.6,33.43678766]
[1642906340135,7.37e-05,2416.7,2416.6,32.24018539]
[1642906340335,7.37e-05,2416.7,2416.6,35.46838539]
[1642906340936,7.37e-05,2416.7,2416.6,31.94781002]
[1642906341337,7.37e-05,2416.7,2416.6,33.03619427]
[1642906341703,7.37e-05,2416.7,2416.6,36.86349427]
[1642906343792,7.37e-05,2416.7,2416.6,12.83349427]
[1642906344397,1.16804897,2417.8,2417.0,0.94148329]
[1642906344595,1.16804897,2417.8,2417.3,1.29243597]
[1642906344796,0.00568423,2417.7,2417.3,1.29243597]
[1642906345200,0.00511581,2417.6,2417.3,1.29243597]
[1642906345438,0.00511581,2417.6,2417.3,3.47673038]
[1642906345640,0.04988,2418.2,2417.3,3.47673038]
[1642906345641,0.00454738,2417.5,2417.3,3.47673038]
[1642906346039,0.00397896,2417.4,2417.3,3.47673038]
[1642906346240,0.00397896,2417.4,2417.3,3.77673038]
[1642906346441,0.0073895,2417.4,2417.3,3.77673038]
[1642906347045,0.0073895,2417.4,2417.3,1.59243597]
[1642906347442,0.0073895,2417.4,2417.3,3.70810347]
[1642906349888,0.0073895,2417.4,2417.3,1.59243597]
[1642906351685,0.0073895,2417.4,2417.3,3.69395533]
[1642906352086,0.0073895,2417.4,2417.3,1.59243597]
[1642906353437,0.0073895,2417.4,2417.0,0.0007263]
[1642906353639,0.01280317,2417.2,2417.0,0.0007263]
[1642906353838,0.04995,2417.1,2417.0,0.0007263]
[1642906354038,0.05222369,2417.1,2417.0,0.0007263]
[1642906354638,1.42350679,2417.1,2417.0,0.0007263]
[1642906357390,1.58924979,2417.1,2417.0,0.0007263]
[1642906357786,1.42350679,2417.1,2417.0,0.0007263]
[1642906358588,0.05222369,2417.1,2417.0,0.0007263]
[1642906358790,0.00227369,2417.1,2417.0,0.0007263]
[1642906359389,0.00227369,2417.1,2417.0,1.9507263]
[1642906359688,0.00227369,2417.1,2417.0,3.67282972]
[1642906360086,0.00227369,2417.1,2417.0,3.37282972]
[1642906360539,0.00227369,2417.1,2417.0,1.42282972]
[1642906360741,0.16800269,2417.1,2417.0,1.42282972]
[1642906361338,0.00227369,2417.1,2417.0,1.42282972]
[1642906361938,0.00227369,2417.1,2417.0,3.98379302]
[1642906362137,0.00227369,2417.1,2417.0,4.98379302]
[1642906362340,7.369e-05,2417.1,2417.0,29.01379302]
[1642906362542,0.2652,2418.4,2417.2,24.03]
[1642906362740,0.2652,2418.4,2417.3,6.35822406]
[1642906362944,0.00397897,2417.8,2417.4,1.33736437]
[1642906363142,7.897e-05,2417.8,2417.5,4.17688806]
[1642906363344,0.01265519,2419.2,2417.7,2.85]
[1642906363541,7.48,2419.6,2418.0,24.03]
[1642906363741,7.48,2419.6,2418.2,24.03]
[1642906363742,0.00292108,2418.9,2418.2,24.03]
[1642906363942,0.00292108,2418.9,2418.3,0.6573]
[1642906364190,0.00235266,2418.8,2418.4,1.34219561]
[1642906364382,0.00235266,2418.8,2418.5,0.1653]
[1642906364584,0.00178424,2418.7,2418.5,0.1653]
[1642906364784,0.00178424,2418.7,2418.5,2.58339691]
[1642906364984,0.00121581,2418.6,2418.5,2.58339691]
[1642906365386,0.00121581,2418.6,2418.5,0.1653]
[1642906366006,0.00121581,2418.6,2418.0,0.00219473]
[1642906366007,0.04967581,2418.6,2418.0,0.00219473]
[1642906366387,0.34967581,2418.6,2417.9,0.00276315]
[1642906366585,0.29967581,2418.6,2417.6,0.00446842]
[1642906366986,1.32388397,2417.7,2417.6,0.00446842]
[1642906367586,0.048,2418.4,2417.6,0.00446842]
[1642906367587,1.048,2418.4,2417.6,0.00446842]
[1642906367788,0.048,2418.4,2417.6,0.00446842]
[1642906368235,0.04934,2418.5,2417.6,0.00446842]
[1642906368439,0.165677,2418.1,2417.6,0.00446842]
[1642906368646,1.18697525,2417.9,2417.6,0.00446842]
[1642906369339,1.48697525,2417.9,2417.6,0.00446842]
[1642906369539,1.48697525,2417.9,2417.2,0.00674212]
[1642906369738,1.18697525,2417.9,2417.2,0.00674212]
[1642906370249,0.3,2417.8,2417.2,0.00674212]
[1642906370443,1.48697525,2417.9,2417.2,0.00674212]
[1642906370638,2.48697525,2417.9,2417.2,0.00674212]
[1642906371442,1.48697525,2417.9,2417.2,0.00674212]
[1642906371700,0.3,2417.8,2417.2,0.00674212]
[1642906372087,1.3,2417.8,2417.2,0.00674212]
[1642906372487,0.3,2417.8,2417.2,0.00674212]
[1642906372786,1.3,2417.8,2417.2,0.00674212]
[1642906372987,0.3,2417.8,2417.2,0.00674212]
[1642906373190,1.3,2417.8,2417.2,0.00674212]
[1642906373387,1.16982044,2417.3,2417.2,0.00674212]
[1642906374392,1.16982044,2417.3,2417.1,0.00731054]
[1642906376838,3.1062,2417.2,2417.1,0.00731054]
[1642906377038,3.1062,2417.2,2417.0,0.0007263]
[1642906377039,2.85,2417.1,2417.0,0.0007263]
[1642906377238,4.39179,2417.1,2417.0,0.0007263]
[1642906377445,4.39179,2417.1,2415.8,3.52082088]
[1642906377446,2.85,2417.0,2415.8,3.52082088]
[1642906377638,3.59441801,2416.9,2415.8,3.52082088]
[1642906377836,1.04818,2416.9,2415.9,0.00682108]
[1642906378038,1.34818,2416.9,2416.0,3.52082088]
[1642906378436,1.34818,2416.9,2416.1,0.00568423]
[1642906378943,1.23676243,2416.2,2415.8,0.0073895]
[1642906379591,1.18676243,2416.2,2415.8,0.0073895]
[1642906379995,0.34979,2416.1,2416.0,1.5]
[1642906380195,2.0,2416.0,2415.8,0.0073895]
[1642906380394,0.84179,2416.1,2415.7,0.497592]
[1642906380395,0.04979,2416.1,2415.7,0.497592]
[1642906380595,1.18676243,2416.2,2415.7,0.497592]
[1642906380995,0.04979,2416.1,2415.7,0.497592]
[1642906381197,1.3130098,2415.8,2415.7,0.497592]
[1642906381500,0.18798997,2416.2,2415.7,0.50554993]
[1642906381696,0.13819997,2416.2,2415.7,0.50554993]
[1642906381896,1.22423607,2416.3,2415.7,0.50554993]
[1642906381897,0.13819997,2416.3,2415.8,0.0073895]
[1642906382097,0.04979,2416.8,2415.8,0.0073895]
[1642906382295,0.43273561,2416.9,2415.8,0.0073895]
[1642906382496,0.04981,2416.8,2416.0,0.87512884]
[1642906382694,0.43273561,2416.9,2416.0,0.87512884]
[1642906382933,0.43273561,2416.9,2416.1,0.00568423]
[1642906382934,0.48257561,2416.9,2416.1,0.00568423]
[1642906383232,0.48257561,2416.9,2416.1,1.41603167]
[1642906383633,0.48257561,2416.9,2416.2,0.00511581]
[1642906383835,1.38394603,2416.7,2416.2,0.00511581]
[1642906384433,1.38394603,2416.7,2415.8,0.0073895]
[1642906385034,1.68394603,2416.7,2415.9,2.95571588]
[1642906385238,1.38394603,2416.7,2415.9,2.95571588]
[1642906385434,1.38394603,2416.7,2416.0,0.00625266]
[1642906385835,1.33394603,2416.7,2416.0,0.00625266]
[1642906386037,0.51958742,2416.9,2416.3,1.45898418]
[1642906386238,0.61533525,2417.4,2416.3,1.47165152]
[1642906386440,0.43262647,2417.6,2416.5,0.02702249]
[1642906386697,1.44753712,2417.8,2416.4,0.00397896]